Cogmind - Beta 17 @@@ ROGUE MODE // 2026.08.01 @ 22:03:58 Player: NeoBioHazard Result: Destroyed by as-93455 with Assembled F-torch Performance ------------- Evolutions (0) 0 Regions Visited (2) 400 Robots Destroyed (10) 50 Value Destroyed (208) 208 Prototype IDs (2) 40 Alien Tech Used (0) 0 Bonus (85) 85 TOTAL SCORE: 783 Bonus ------- Follower Combat Kills 85 Cogmind --------- Core Integrity 0/250 Matter 290/300 Energy 214/250 System Corruption 0% Temperature Warm (126) Movement Rolling (110) Ox2 Location -10/Mines Parts ------- > --- POWER (1) -------- Ion Engine > --- PROPULSION (2) --- Wheel > --- UTILITY (2) ------ Large Storage Unit > --- WEAPON (2) ------- Medium Laser Beam Cannon > --- INVENTORY (15) --- Light Ion Engine Light Ion Engine Light Treads Small Storage Unit EM Pulse Gun Grenade Launcher Peak State ------------ > --- POWER ------------ Ion Engine > --- PROPULSION ------- Light Treads Light Treads > --- UTILITY ---------- Heat Sink Large Storage Unit > --- WEAPON ----------- Small Laser Particle Gun > --- INVENTORY -------- Light Ion Engine Light Treads Small Storage Unit EM Pulse Gun Medium Laser [Rating: 8] Favorites ----------- Power Ion Engine Engine Ion Engine Propulsion Light Treads Treads Light Treads Wheel Wheel Utility Large Storage Unit Device Heat Sink Storage Large Storage Unit Weapon Small Laser Energy Gun Small Laser Energy Cannon Beam Cannon Build | -11 -10 -10 ------- Run | Yrd Mat Min Slots Evolved . | . . . Power . | . . . Propulsion . | . . . Utility . | . . . Weapon . | . . . Parts Attached 14 | 6 2 6 Power 2 | 1 . 1 Engine 2 | 1 . 1 Core . | . . . Reactor . | . . . Propulsion 4 | 2 1 1 Treads 3 | 2 1 . Leg . | . . . Wheel 1 | . . 1 Hover . | . . . Flight . | . . . Utility 4 | 1 1 2 Device 1 | . . 1 Storage 3 | 1 1 1 Processor . | . . . Hackware . | . . . Protection . | . . . Artifact . | . . . Weapon 4 | 2 . 2 Energy Gun 3 | 2 . 1 Energy Cannon 1 | . . 1 Ballistic Gun . | . . . Ballistic Cannon . | . . . Launcher . | . . . Special Weapon . | . . . Impact Weapon . | . . . Slashing Weapon . | . . . Piercing Weapon . | . . . Special Melee Weapon . | . . . Unidentified Prototypes . | . . . Parts Lost 4 | . . 4 Power 1 | . . 1 Propulsion 1 | . . 1 Utility . | . . . Weapon 2 | . . 2 Highest Loss Streak 4 | . . 4 To Critical Strikes . | . . . Average Backups 4 | 1 2 5 Power 1 | . 1 1 Propulsion . | . . 1 Utility . | . . 1 Weapon 1 | . 1 1 Tool/Special . | . . . Unused Backups 4 | . . 4 Power 2 | . . 2 Propulsion . | . . . Utility . | . . . Weapon 2 | . . 2 Tool/Special . | . . . Average Slot Usage (%) 78 | . 85 75 Engine 12 | . 14 12 Treads 21 | . 28 17 Wheel 2 | . . 3 Device 3 | . . 5 Storage 13 | . 14 12 Energy Gun 21 | . 28 19 Energy Cannon 2 | . . 3 Peak Build Rating 8 | 6 7 8 Average Rating 5 | 4 6 5 On Entrance 4 | . 6 6 Avg Prop Armor Cover (%) . | . . . Naked Turns 83 | . . 83 Heaviest Build 30 | 13 28 30 Greatest Support 40 | 40 40 40 Greatest Overweight (x) 2 | . . 2 Average Overweight (x) . | . . . Largest Inventory Capacity 15 | 8 15 15 Average Capacity 13 | 6 13 13 Most Carried 7 | 2 4 7 Average Carried 4 | 1 2 5 Final Capacity 15 | 8 15 15 Final Carried 6 | 2 4 6 Class Distribution -------------------- 83% | Mutant 16% | Derelict-Mutant Dominant Class ---------------- Mutant | -10/Materials Mutant | -10/Mines Resources | -11 -10 -10 ----------- Run | Yrd Mat Min Matter Collected 340 | 177 103 60 Remotely . | . . . Salvage Created 354 | . 261 93 Parts 17 | . 10 7 Haulers Intercepted 1 | . 1 . Recyclers Shooed 1 | . 1 . Parts Field Recycled . | . . . Retrieved Matter . | . . . Parts Self-Destructed . | . . . Prevented . | . . . Parts Restored . | . . . Kills | -11 -10 -10 ------- Run | Yrd Mat Min Combat Hostiles Destroyed 6 | . 2 4 Guns 6 | . 2 4 Classes Destroyed 5 | . 4 1 Hauler 1 | . 1 . Recycler 1 | . 1 . Watcher 2 | . 2 . Swarmer 3 | . . 3 Grunt 3 | . 2 1 Best Kill Streak 3 | . 3 3 Combat Bots Only 3 | . 1 3 Max Kills in Single Turn 1 | . 1 1 Gunslinging . | . . . Exploded . | . . . Melee . | . . . Uniques/NPCs Destroyed . | . . . Combat | -11 -10 -10 -------- Run | Yrd Mat Min Hostile Shots Fired 37 | . 5 32 Missed 8 | . 2 6 Hits 29 | . 3 26 Projectile 29 | . 3 26 AOE 12 | . . 12 Part Disruptions 1 | . . 1 Damage Taken 798 | . 42 756 Core 255 | . 31 224 Absorbed by Shields . | . . . Core Remaining (%) 100 | 100 . . Volleys Fired 30 | . 17 13 Largest 2 | . 2 2 Hottest 110 | . 90 110 Shots Fired 60 | . 34 26 Gun 57 | . 34 23 Cannon 3 | . . 3 Launcher . | . . . Special . | . . . Kinetic . | . . . Thermal 60 | . 34 26 Explosive . | . . . Electromagnetic . | . . . Robot Hit Streak 9 | . 9 5 Robot Miss Streak 3 | . 2 3 Penetration Max . | . . . Secondary Targets . | . . . Shots Hit Robots 40 | . 22 18 Core Hits 20 | . 12 8 Critical Kills . | . . . Critical Parts Destroyed . | . . . Critical Strikes 3 | . 1 2 Burn 3 | . 1 2 Melee Attacks . | . . . Impact . | . . . Slashing . | . . . Piercing . | . . . Sneak Attacks . | . . . Combat Hostiles . | . . . Follow-up Attacks . | . . . Damage Inflicted 528 | . 254 274 Guns 493 | . 254 239 Cannons 35 | . . 35 Explosions . | . . . Melee . | . . . Ramming . | . . . Kinetic . | . . . Thermal 528 | . 254 274 Explosive . | . . . Electromagnetic . | . . . Impact . | . . . Slashing . | . . . Piercing . | . . . Highest Corruption . | . . . Average Corruption . | . . . Corruption Purged . | . . . Corruption Blocked . | . . . Overload Shots . | . . . Overflow Damage . | . . . Projectiles . | . . . Explosions . | . . . Melee . | . . . Knockbacks . | . . . Impact . | . . . Kinetic . | . . . Secondary . | . . . Self-Inflicted Damage . | . . . Shots . | . . . Rammed . | . . . Targets Rammed . | . . . Kicked . | . . . Crushed . | . . . Highest Temperature 189 | . 180 189 Average Temperature 69 | . 69 70 Received Heat Transfer 168 | . 24 144 Siege Activations . | . . . Martial Activations . | . . . Shielding Activations . | . . . Robots Disrupted . | . . . Combat Hostiles . | . . . Robots Corrupted . | . . . Combat Hostiles . | . . . Parts Fried . | . . . Impact Corruptions . | . . . Robots Melted . | . . . Combat Hostiles . | . . . Parts Melted 4 | . 1 3 Heat Transferred 1536 | . 732 804 Parts Sabotaged . | . . . Parts Stolen . | . . . Parts Stripped . | . . . Power Chain Reactions . | . . . Alert | -11 -10 -10 ------- Run | Yrd Mat Min Maximum Alert Level . | . . . Low Security (%) 100 | 100 100 100 Level 1 . | . . . Level 2 . | . . . Level 3 . | . . . Level 4 . | . . . Level 5 . | . . . High Security . | . . . Max Security . | . . . Peak Influence 121 | . 40 121 Initial . | . . . Average 26 | . 7 37 Influence Increases 388 | . 92 296 Destroy 0b10 Robot/C 180 | . 40 140 Destroy 0b10 Robot/NC 20 | . 20 . Destroy Leader 46 | . 16 30 Allied During Kill 6 | . . 6 Successful Hack 16 | . 16 . Disable Machine 15 | . . 15 Lose Combat Pursuer 105 | . . 105 Influence Decreases 379 | . 92 287 Time Decay 348 | . 92 256 Lost Part 31 | . . 31 Squads Dispatched . | . . . Investigation . | . . . Extermination . | . . . Reinforcement . | . . . Assault . | . . . Garrison . | . . . Intercept . | . . . Searches Triggered . | . . . Construction Impeded . | . . . Haulers Reinforced . | . . . Active Scanning Responses . | . . . Cargo Convoy Interrupts . | . . . Stealth | -11 -10 -10 --------- Run | Yrd Mat Min Distress Signals 1 | . 1 . Communications Jammed . | . . . Distress Signals . | . . . Times Spotted 21 | . 4 17 Peak Tracking Total 3 | . 3 2 Tactical Retreats 6 | . . 6 Traps | -11 -10 -10 ------- Run | Yrd Mat Min Traps Triggered . | . . . Indirectly . | . . . Trap Hack Attempts . | . . . Triggered . | . . . Disarmed . | . . . Reprogrammed . | . . . Reused . | . . . Traps Extracted . | . . . Installed . | . . . Triggered . | . . . Machines | -11 -10 -10 ---------- Run | Yrd Mat Min Machines Disabled 1 | . . 1 Max in Single Turn 1 | . . 1 Machines Repaired . | . . . Machines Dismantled . | . . . Machines Sabotaged . | . . . Overloaded Fab Kills . | . . . Hacking | -11 -10 -10 --------- Run | Yrd Mat Min Machines Accessed 2 | . 2 . Terminals 2 | . 2 . Fabricators . | . . . Repair Stations . | . . . Recycling Units . | . . . Scanalyzers . | . . . Garrison Access . | . . . Total Hacks 7 | . 7 . Successful 4 | . 4 . Failed 2 | . 2 . Catastrophic 1 | . 1 . Database Lockouts 1 | . 1 . Manual 4 | . 4 . Terminals 7 | . 7 . Fabricators . | . . . Repair Stations . | . . . Recycling Units . | . . . Scanalyzers . | . . . Garrison Access . | . . . Terminal Hacks 4 | . 4 . Robot Analysis 2 | . 2 . Prototype ID Bank 1 | . 1 . Locate Traps 1 | . 1 . Fabricator Hacks . | . . . Repair Station Hacks . | . . . Recycling Unit Hacks . | . . . Scanalyzer . | . . . Garrison Access Hacks . | . . . Unauthorized Hacks . | . . . Terminals . | . . . Fabricators . | . . . Repair Stations . | . . . Recycling Units . | . . . Scanalyzers . | . . . Garrison Access . | . . . Data Cores Recovered . | . . . Used . | . . . Hacking Detections 2 | . 2 . Full Trace Events . | . . . Feedback Events . | . . . Feedback Blocked . | . . . Robot Schematics Acquired . | . . . Robots Built . | . . . Authchips . | . . . Time . | . . . Total Robot Build Rating . | . . . Part Schematics Acquired . | . . . Parts Built . | . . . Authchips . | . . . Time . | . . . Total Part Build Rating . | . . . Part Studies Acquired . | . . . Parts Repaired . | . . . Time . | . . . Parts Recycled . | . . . Recycled Matter . | . . . Retrieved Matter . | . . . Retrieved Components . | . . . Parts Scanalyzed . | . . . Part Schematics Acquired . | . . . Parts Damaged . | . . . Bothacking | -11 -10 -10 ------------ Run | Yrd Mat Min Used RIF Installer . | . . . Robots Hacked . | . . . Non-combat . | . . . Combat . | . . . Robot Hacks Applied . | . . . Relay Couplers Released . | . . . Fabnet Peak Effective % . | . . . Robots Rewired . | . . . Allies Hacked . | . . . Hacks Repelled . | . . . Allies | -11 -10 -10 -------- Run | Yrd Mat Min Total Allies 1 | . . 1 Largest Group 1 | . . 1 Highest-Rated Group 31 | . . 31 Highest-Rated Ally 31 | . . 31 Total Orders . | . . . Ally Attacks 12 | . . 12 Total Damage 191 | . . 191 Kills 3 | . . 3 Allies Corrupted . | . . . Allies Melted . | . . . Intel | -11 -10 -10 ------- Run | Yrd Mat Min Active Infowar (turns) . | . . . Robot Analysis Total 2 | . 2 . Derelict Logs Recovered 2 | . . 2 Drone Launches . | . . . Drone Recoveries . | . . . Exploration | -11 -10 -10 ------------- Run | Yrd Mat Min Turns Passed 1179 | 66 354 759 Spaces Moved 805 | 36 185 584 Core 168 | 1 . 167 Treads 499 | 35 185 279 Legs . | . . . Wheels 138 | . . 138 Hover . | . . . Flight . | . . . Fastest Speed 50 | 50 160 50 Average Speed 128 | 156 160 116 Slowest Speed 240 | 160 160 240 Overloaded Moves . | . . . Propulsion Burnouts . | . . . Robots Hopped . | . . . Potential Cave-ins . | . . . Cave-ins Triggered . | . . . Exploration Rate (%) 42 | 3 40 85 Regions Visited 2 Branch Regions 1 Pre-discovered Areas 1 | . . 1 Known Exits Taken . | . . . Unknown Exits Taken 2 | 1 1 . Scrap Searched 1 | . . 1 Spaces Dug . | . . . Terrain Destroyed . | . . . Melee . | . . . Projectile . | . . . AOE . | . . . Terrain Rammed . | . . . Walls Destroyed . | . . . Machines Disabled . | . . . Actions | -11 -10 -10 --------- Run | Yrd Mat Min Total 887 | 43 209 635 Wait 34 | . 5 29 Move 803 | 35 184 584 Hop . | . . . Pick Up 4 | 2 . 2 Fast Attach 12 | 6 1 5 Attach 1 | . . 1 Detach 1 | . 1 . Swap 2 | . 1 1 Drop . | . . . Fire 30 | . 17 13 Melee . | . . . Ram . | . . . Kick . | . . . Crush . | . . . Escape Stasis . | . . . Rewire . | . . . Trap . | . . . Miscellaneous . | . . . Route ------- -11/Scrapyard -10/Materials (discovered 2 exits: [*Mat] / [*Min]) -10/Mines (discovered 2 exits: [*Mat x2]) History --------- Turn | Location | Event 2 | -11/Scrapyard | Met Revision 17 28 | -11/Scrapyard | Discovered new exit (range 15) 67 | -11/Scrapyard | Entered Materials 170 | -10/Materials | Discovered new exit (range 7) 278 | -10/Materials | Discovered new exit (range 10) 302 | -10/Materials | Build established: Mutant 349 | -10/Materials | Central database locked down 421 | -10/Materials | Entered Mines 424 | -10/Mines | Received a Mining Laser from a helpful Derelict 514 | -10/Mines | A weapon hastily lodged in a ceiling crevice suddenly fell to the ground 684 | -10/Mines | Learned location of Zion (-7) 706 | -10/Mines | Learned Materials non-interactive machine intel 733 | -10/Mines | Discovered new exit (range 8) 768 | -10/Mines | Discovered new exit (range 5) 875 | -10/Mines | Assembled infested the area 900 | -10/Mines | Core integrity fell below 50% 902 | -10/Mines | Released all parts (3) 903 | -10/Mines | Core integrity fell below 20% 932 | -10/Mines | Lost 4 parts (1p1n2w) 983 | -10/Mines | Found DCF Scrap (12 items) 1180 | -10/Mines | Destroyed by as-93455 with Assembled F-torch Last Messages --------------- 00983_ Found Lgt. Ion Engine. 00983_ Found Hover Unit. 00983_ Found Wheel. 00983_ Found Hcp. Storage Unit. 00983_ Found Lrg. Storage Unit. 00983_ Found Propulsion Shielding. 00983_ Found Grenade Launcher. 00983_ Found Lgt. Cannon. 00983_ Found Mining Laser. 00983_ Found Beam Cannon. 00983_ Found 124 Matter. A note is attached: "With love, from the DCF." 00985_ Acquired Wheel. 00988_ Acquired Lrg. Storage Unit. 00991_ Acquired Ion Engine. 00996_ Acquired Beam Cannon. 00997_ Acquired 40 matter. 01002_ Acquired Grenade Launcher. 01007_ Acquired Lgt. Ion Engine. 01177_ as-93455 suffers critical hit (Burn). Map ----- +----------------------------------------------------+ | ????????# #????????# ###????# #??# #??????# | | ????????# #????????# #??????#]#??# #??????## | | ????????# #????????# #####??#|#??# #???????## | | ????????# #????????# ## ##?#%#??# #????????# | | ????????# #????????# # ### #??# #????????# | | ????????# #????????# ## #??# #????????# | | ????????# #????????##### ## #??# #????????# | | ????????# #???########## < ## #### #????????# | | ????????# #???# ### #????????# | | ????????# #???# ##?###### #????????# | | ????????# #???# ###########???????# #????????# | | ???????## #???# #?????????????????# #????????? | | ??????## ##??# #?????????????????# #????????? | | ?????## #### ##???????########?# #????????? | | ?????# ## ###?????# ### ##???????? | | ?????# #?????# ##??????? | | ?????# #?????# ## ##?????? | | ?????## ####???# ## ####??? | | ??????# ## ##??# ### ##?? | | ?????## ## # #### #?####### ##? | | ?????# ^ # ^ # #???????## ## | | ?????# # ## ### %#????????### # | | ?????## # ## ##?#% #??????????## # | | ??????## ^^ # ##??# #???????????# | | ???????# ###### aa##??# ##??????????# | | ??##???## #??## @#?## ##?????????# | | ?## #??## #### #?# ##????????# | | ?# #?## ## #?# #????????# # | | ?# ## ## #?## #????????## ## | | ??# #### ##??# #?????????####? | | ??# #??###???# #########?????? | | ??## #????????# #?????# | | ???####### # ##????????# #?????# | | ?????????# ####?????????# ####### #????## | | ?????????# #????????????## ##?????????????# | | ?????????# #??############ ########???????# | | ??????#### #??# #???## | | ??????# #??# ########## ## #### #????# | | ??????# #??# #????# % #?#????????????? | | ??????# ####??# #????# #??????????????? | | ????### #?????# #????# #????????????? | | ???## #?????# #????# % #???????????? | | ???# #?????# #????# """ #????????????? | | ???## ##????# #????# """ #??????????????? | | ????## ###### #????# """ #??????????????? | | ?????## #????# #??????????????? | | ??????## #######????# """ #??????????????? | | ???????# /#??????????# """ #??????????????? | | ???????## #?????????# """ #??????????????? | | ????????# #????????# #??????????????? | +----------------------------------------------------+ Best States ------------- Heat Dissipation 35 Energy Generation 10 Energy Capacity 250 Matter Stores 300 Matter Capacity 300 Sight Range 16 Terrain Scan Density 10 Evasion (%) 50 Recoil Reduction 2 Item Schematics ----------------- None Robot Schematics ------------------ None Fabricated ------------ Nothing Repaired ---------- Nothing Studied --------- None Alien Tech Used ----------------- None Achievements -------------- None Challenges ------------ None Game ------ Seed SwarmDiametricMediator Manual? 0 Play Time 00:09:13 Cumulative 252.7 hours Start 2026.08.01 @ 21:58:15 End 2026.08.01 @ 22:03:58 Sessions 1 Manual Loads 0 Difficulty Rogue Special Mode None Game No. 422 Rogue 259 Adventurer 15 Explorer 148 Win Type - Total 30 Types 29/0/0/1/0/0/0/0/0/0 Lore% 65 Gallery% 64 Achievement% 58 Wizard Run 0 Options --------- Layout 0 ASCII 0 Keyboard 1 Movement Numpad Keybinds 0 Fullscreen 2 Font 18/SmallcapsGlow Map View 76x50 Zoom Use 0% Tactical HUD 1 Map Filters NONE Filters NONE Steam 1 RUN: 633f933b-9e1a-491a-bfd5-d7c808999e3b